[Event "European Womens-ch 2025"]
[Site "Rhodes"]
[Date "2025.04.08"]
[Round "8.1"]
[White "Khotenashvili, Bella"]
[Black "Injac, Teodora"]
[Result "0-1"]
[Annotator "RC"]
[ECO "A05"]
[WhiteElo "2418"]
[BlackElo "2454"]
[PlyCount "66"]
[EventDate "2025.03.29"]
[EventType "swiss"]
[EventCountry "GRE"]
[SourceTitle "playchess.com"]
[Source "ChessBase"]
[SourceQuality "1"]
[TimeControl "40/5400+30:1800+30"]

1. b3 {[%emt 0:00:33]} Nf6 {[%emt 0:04:02]} 2. Bb2 {[%emt 0:00:06]} g6 {[%emt 0:05:32]} 3. g3 {[%emt 0:00:25]} d5 {[%emt 0:05:21]} 4. Nf3 {[%emt 0:04:04]} c5 {[%emt 0:00:26]} 5. c4 {[%emt 0:00:17]} d4 {[%emt 0:00:21]} 6. b4 {[%emt 0:00:12]} Bg7 {[%emt 0:01:22]} 7. Bg2 {[%emt 0:02:34]} O-O {[%emt 0:02:30]} 8. O-O {[%emt 0:00:39]} Re8 {[%emt 0:10:38]} 9. bxc5 {[%emt 0:02:17]} Ne4 {[%emt 0:07:46]} 10. d3 {[%emt 0:05:00]} Nxc5 {[%emt 0:00:10]} 11. Nbd2 {[%emt 0:00:25]} e5 {[%emt 0:05:01]} 12. Ba3 {[%emt 0:04:09]} Nba6 {[%emt 0:00:40]} 13. Nb3 {[%emt 0:12:24]} Bf8 {[%emt 0:14:45]} 14. h4 {[%emt 0:22:17]} Bd7 {[%emt 0:01:38]} 15. Ng5 {[%emt 0:00:51]} Bc6 {[%emt 0:01:34]} 16. Bxc6 {[%emt 0:01:34]} bxc6 {[%emt 0:00:04]} 17. Nxc5 {[%emt 0:00:13]} Nxc5 {[%emt 0:04:38]} 18. Bxc5 {[%emt 0:03:59]} Bxc5 {[%emt 0:00:04]} 19. Qa4 {[%emt 0:01:28]} Be7 {[%emt 0:02:20]} 20. Ne4 {[%emt 0:05:02]} f5 {[%emt 0:09:58]} 21. Nd2 {[%emt 0:00:37]} Qc7 {[%emt 0:02:16]} 22. Rfb1 {[%emt 0:04:24]} e4 {[%emt 0:10:59]} 23. c5 {[%emt 0:08:51]} Bf6 {[%emt 0:00:59]} 24. Nc4 {[%emt 0:07:10]} Be5 {[%emt 0:01:05]} 25. Kg2 {[%emt 0:03:29]} exd3 {[%emt 0:04:58]} 26. exd3 {[%emt 0:00:39]} Bxg3 {[%emt 0:00:40]} 27. fxg3 {[%emt 0:01:28]} Re2+ {[%emt 0:00:01]} 28. Kh3 {[%emt 0:00:08]} g5 {[%emt 0:00:18]} 29. Ne5 {[%emt 0:07:37]} g4+ {[%emt 0:00:57]} 30. Nxg4 {[%emt 0:00:11]} fxg4+ {[%emt 0:00:03]} 31. Kxg4 {[%emt 0:00:03]} h5+ {[%emt 0:02:16]} 32. Kxh5 {[%emt 0:00:21]} Qf7+ {[%emt 0:00:36]} 33. Kg4 {[%emt 0:00:11]} Qe6+ {[%emt 0:00:05]} 0-1

[Event "European Womens-ch 2025"]
[Site "Rhodes"]
[Date "2025.04.08"]
[Round "8.2"]
[White "Mkrtchian, Lilit"]
[Black "Kirtadze, Anastasia"]
[Result "1-0"]
[Annotator "RC"]
[ECO "D05"]
[WhiteElo "2388"]
[BlackElo "2180"]
[PlyCount "61"]
[EventDate "2025.03.29"]
[EventType "swiss"]
[EventCountry "GRE"]
[SourceTitle "playchess.com"]
[Source "ChessBase"]
[SourceQuality "1"]
[TimeControl "40/5400+30:1800+30"]

1. d4 {[%emt 0:00:15]} d5 {[%emt 0:00:27]} 2. Nf3 {[%emt 0:00:49]} Nf6 {[%emt 0:01:04]} 3. e3 {[%emt 0:00:47]} c5 {[%emt 0:04:34]} 4. c3 {[%emt 0:02:23]} Nc6 {[%emt 0:07:45]} 5. dxc5 {[%emt 0:02:33]} e5 {[%emt 0:19:40]} 6. b4 {[%emt 0:01:22]} Qc7 {[%emt 0:02:05]} 7. Nbd2 {[%emt 0:20:00]} Be7 {[%emt 0:08:55]} 8. Bb2 {[%emt 0:00:41]} O-O {[%emt 0:04:37]} 9. Be2 {[%emt 0:12:41]} Bf5 {[%emt 0:08:13]} 10. O-O {[%emt 0:05:38]} Rad8 {[%emt 0:02:47]} 11. a3 {[%emt 0:01:16]} h6 {[%emt 0:06:33]} 12. c4 {[%emt 0:17:05]} d4 {[%emt 0:04:21]} 13. exd4 {[%emt 0:00:06]} exd4 {[%emt 0:00:44]} 14. Re1 {[%emt 0:00:53]} d3 {[%emt 0:08:17]} 15. Bf1 {[%emt 0:00:09]} a5 {[%emt 0:03:37]} 16. Bc3 {[%emt 0:05:39]} g5 {[%emt 0:04:14]} 17. g3 {[%emt 0:22:17]} g4 {[%emt 0:06:08]} 18. Nh4 {[%emt 0:00:08]} Bh7 {[%emt 0:00:15]} 19. Re3 {[%emt 0:01:14]} h5 {[%emt 0:02:19]} 20. Qe1 {[%emt 0:01:52]} Rd7 {[%emt 0:00:34]} 21. b5 {[%emt 0:00:53]} Nd8 {[%emt 0:01:07]} 22. b6 {[%emt 0:01:16]} Qxc5 {[%emt 0:00:43]} 23. Re5 {[%emt 0:00:11]} Nd5 {[%emt 0:01:36]} 24. Nf5 {[%emt 0:01:47]} Bxf5 {[%emt 0:01:21]} 25. Rxf5 {[%emt 0:00:07]} Qc8 {[%emt 0:00:26]} 26. Rxd5 {[%emt 0:00:21]} Rxd5 {[%emt 0:00:06]} 27. Qxe7 {[%emt 0:00:06]} Rf5 {[%emt 0:01:00]} 28. Bxd3 {[%emt 0:00:15]} Nc6 {[%emt 0:00:17]} 29. Qe4 {[%emt 0:00:16]} Ne7 {[%emt 0:00:36]} 30. Qxe7 {[%emt 0:00:25]} Rc5 {[%emt 0:00:09]} 31. Qf6 {[%emt 0:00:19]} 1-0

[Event "European Womens-ch 2025"]
[Site "Rhodes"]
[Date "2025.04.08"]
[Round "8.3"]
[White "Milliet, Sophie"]
[Black "Bulmaga, Irina"]
[Result "0-1"]
[Annotator "RC"]
[ECO "E15"]
[WhiteElo "2371"]
[BlackElo "2362"]
[PlyCount "140"]
[EventDate "2025.03.29"]
[EventType "swiss"]
[EventCountry "GRE"]
[SourceTitle "playchess.com"]
[Source "ChessBase"]
[SourceQuality "1"]
[TimeControl "40/5400+30:1800+30"]

1. d4 {[%emt 0:00:03]} Nf6 {[%emt 0:00:09]} 2. c4 {[%emt 0:00:03]} e6 {[%emt 0:00:07]} 3. Nf3 {[%emt 0:00:04]} b6 {[%emt 0:00:08]} 4. g3 {[%emt 0:00:08]} Ba6 {[%emt 0:00:07]} 5. Qc2 {[%emt 0:00:41]} Bb7 {[%emt 0:00:24]} 6. Bg2 {[%emt 0:00:05]} c5 {[%emt 0:00:11]} 7. d5 {[%emt 0:00:21]} exd5 {[%emt 0:00:22]} 8. cxd5 {[%emt 0:00:04]} Nxd5 {[%emt 0:01:20]} 9. O-O {[%emt 0:00:12]} Be7 {[%emt 0:05:07]} 10. Rd1 {[%emt 0:00:10]} Nc7 {[%emt 0:24:49]} 11. Nc3 {[%emt 0:04:00]} Qc8 {[%emt 0:24:35]} 12. Bf4 {[%emt 0:03:54]} O-O {[%emt 0:11:24]} 13. Bd6 {[%emt 0:03:42]} Bxd6 {[%emt 0:05:02]} 14. Rxd6 {[%emt 0:16:46]} h6 {[%emt 0:00:32]} 15. Rad1 {[%emt 0:06:22]} Ne8 {[%emt 0:02:04]} 16. R6d2 {[%emt 0:01:35]} d6 {[%emt 0:00:28]} 17. e4 {[%emt 0:07:14]} Na6 {[%emt 0:01:24]} 18. a3 {[%emt 0:10:59]} Nac7 {[%emt 0:00:11]} 19. Nh4 {[%emt 0:00:13]} Qe6 {[%emt 0:05:37]} 20. Nf5 {[%emt 0:01:03]} Rd8 {[%emt 0:00:06]} 21. Ne2 {[%emt 0:02:07]} Bc8 {[%emt 0:08:52]} 22. b4 {[%emt 0:15:25]} g6 {[%emt 0:01:48]} 23. Nf4 {[%emt 0:07:10]} Qe5 {[%emt 0:01:13]} 24. Ne3 {[%emt 0:00:24]} Nb5 {[%emt 0:00:29]} 25. Nxg6 {[%emt 0:04:09]} fxg6 {[%emt 0:00:17]} 26. Qc4+ {[%emt 0:00:02]} d5 {[%emt 0:01:39]} 27. Qxb5 {[%emt 0:02:34]} Nd6 {[%emt 0:00:23]} 28. Qe2 {[%emt 0:06:23]} d4 {[%emt 0:00:01]} 29. Nd5 {[%emt 0:00:30]} Be6 {[%emt 0:01:43]} 30. f4 {[%emt 0:01:24]} Qg7 {[%emt 0:00:02]} 31. e5 {[%emt 0:01:13]} Nf5 {[%emt 0:00:03]} 32. Nf6+ {[%emt 0:00:07]} Rxf6 {[%emt 0:00:38]} 33. exf6 {[%emt 0:00:03]} Qxf6 {[%emt 0:00:05]} 34. bxc5 {[%emt 0:00:13]} bxc5 {[%emt 0:00:06]} 35. Qa6 {[%emt 0:01:36]} c4 {[%emt 0:02:38]} 36. Re2 {[%emt 0:00:46]} Rd6 {[%emt 0:01:12]} 37. Qxa7 {[%emt 0:00:31]} d3 {[%emt 0:01:07]} 38. Qb8+ {[%emt 0:01:07]} Kf7 {[%emt 0:00:50]} 39. Re5 {[%emt 0:00:10]} Qd8 {[%emt 0:01:20]} 40. Qa7+ {[%emt 0:00:00]} Rd7 {[%emt 0:00:00]} 41. Qa6 {[%emt 0:09:40]} Rd6 {[%emt 0:02:47]} 42. Qa7+ {[%emt 0:01:09]} Ne7 {[%emt 0:09:27]} 43. Rc5 {[%emt 0:06:00]} Ra6 {[%emt 0:06:47]} 44. Qc7 {[%emt 0:11:38]} Qd4+ {[%emt 0:00:49]} 45. Kh1 {[%emt 0:00:01]} Rxa3 {[%emt 0:00:57]} 46. Qe5 {[%emt 0:09:18]} Qxe5 {[%emt 0:00:16]} 47. fxe5 {[%emt 0:00:02]} d2 {[%emt 0:01:01]} 48. h3 {[%emt 0:01:04]} c3 {[%emt 0:00:38]} 49. Be4 {[%emt 0:00:28]} Bf5 {[%emt 0:03:26]} 50. Bf3 {[%emt 0:02:00]} c2 {[%emt 0:01:02]} 51. Rxd2 {[%emt 0:00:26]} Rxf3 {[%emt 0:00:53]} 52. Kg2 {[%emt 0:00:15]} Rb3 {[%emt 0:00:21]} 53. Rf2 {[%emt 0:00:32]} Ke6 {[%emt 0:00:21]} 54. g4 {[%emt 0:00:27]} Be4+ {[%emt 0:00:26]} 55. Kh2 {[%emt 0:00:03]} Rb1 {[%emt 0:01:03]} 56. Rfxc2 {[%emt 0:01:20]} Bxc2 {[%emt 0:00:04]} 57. Rxc2 {[%emt 0:00:03]} Kxe5 {[%emt 0:00:13]} 58. Re2+ {[%emt 0:00:13]} Kf6 {[%emt 0:00:04]} 59. h4 {[%emt 0:00:03]} Nd5 {[%emt 0:00:44]} 60. Ra2 {[%emt 0:00:45]} Ke5 {[%emt 0:00:38]} 61. Ra5 {[%emt 0:01:25]} Ke4 {[%emt 0:01:04]} 62. Kg3 {[%emt 0:00:10]} Rg1+ {[%emt 0:00:29]} 63. Kh3 {[%emt 0:00:53]} Nf4+ {[%emt 0:00:09]} 64. Kh2 {[%emt 0:00:02]} Rg2+ {[%emt 0:00:12]} 65. Kh1 {[%emt 0:00:04]} Rxg4 {[%emt 0:00:05]} 66. Ra4+ {[%emt 0:00:11]} Ke5 {[%emt 0:00:18]} 67. Kh2 {[%emt 0:01:42]} Rxh4+ {[%emt 0:00:09]} 68. Kg3 {[%emt 0:00:02]} Rh3+ {[%emt 0:00:25]} 69. Kg4 {[%emt 0:00:07]} h5+ {[%emt 0:00:15]} 70. Kg5 {[%emt 0:00:03]} Rg3+ {[%emt 0:00:06]} 0-1

[Event "European Womens-ch 2025"]
[Site "Rhodes"]
[Date "2025.04.08"]
[Round "8.4"]
[White "Danielian, Elina"]
[Black "Batsiashvili, Nino"]
[Result "1/2-1/2"]
[Annotator "TA"]
[ECO "A43"]
[WhiteElo "2398"]
[BlackElo "2473"]
[PlyCount "189"]
[EventDate "2025.03.29"]
[EventType "swiss"]
[EventCountry "GRE"]
[SourceTitle "playchess.com"]
[Source "ChessBase"]
[SourceQuality "1"]
[TimeControl "40/5400+30:1800+30"]

{[%evp 16,189,8,-9,0,-12,-9,-63,31,16,15,26,24,16,14,29,41,18,8,0,101,104,119,40,24,25,13,13,10,8,39,0,0,-21,0,-27,0,-31,-37,-16,0,-4,-21,-64,-31,-41,-12,-21,-14,-25,-9,-12,0,-10,-10,-56,-8,-8,-8,-52,-54,-67,-67,-95,-97,-100,-67,-67,-68,-69,-29,-36,-30,-29,-9,-10,-13,-19,-8,-8,-8,-8,-8,-24,-8,-8,-8,-8,-8,-8,-8,-8,-8,-8,-8,-8,-8,-8,-8,-69,-69,-69,-69,-69,-69,-69,-69,-69,-69,-69,-67,-67,-67,-69,-69,-69,-69,-69,-69,-69,-69,-69,-60,-60,-60,-60,-60,-60,-60,-67,-60,-60,-60,-60,-60,-60,-60,-60,-60,-60,-60,-60,-60,-66,-52,-69,-69,-69,-66,-69,-66,-66,-48,-58,-41,-58,-41,-41,-33,-8,-8,-8,-8,-13,-13,-13,-20,-13,-14,-13,-12,0,0,0,-8,-66]} 1. Nf3 {[%emt 0:00:04]} Nf6 {[%emt 0:00:42]} 2. g3 {[%emt 0:01:11]} c5 {[%emt 0:00:13]} 3. Bg2 {[%emt 0:00:43]} Nc6 {[%emt 0:00:23]} 4. d4 {[%emt 0:01:18]} cxd4 {[%emt 0:00:20]} 5. Nxd4 {[%emt 0:00:05]} e5 {[%emt 0:00:22]} 6. Nb3 {[%emt 0:00:04]} d5 {[%emt 0:00:58]} 7. O-O {[%emt 0:01:41]} Be7 {[%emt 0:03:35]} 8. Bg5 {[%emt 0:03:10]} Be6 {[%emt 0:05:53]} 9. Nc3 {[%emt 0:00:32]} d4 {[%emt 0:07:02]} 10. Bxf6 {[%emt 0:00:17]} gxf6 {[%emt 0:00:32]} 11. Ne4 {[%emt 0:01:21]} (11. Na4 $1 $11) 11... Bd5 {[%emt 0:13:42]} ({Black should play} 11... Qb6 $1 $15) 12. e3 {[%emt 0:14:29][%cal Re3d4]} f5 {[%emt 0:07:52]} 13. Ned2 {[%emt 0:00:05]} Bxg2 {[%emt 0:00:07]} 14. Kxg2 {[%emt 0:00:03]} Qd5+ {[%emt 0:01:31]} 15. Qf3 {[%emt 0:07:54]} Qxf3+ {[%emt 0:12:41] A sharp opening} 16. Nxf3 {[%emt 0:01:11]} dxe3 {[%emt 0:00:07]} 17. fxe3 {[%emt 0:00:03]} Nb4 {[%emt 0:01:35]} (17... Kd7 $11) 18. Rf2 $16 {[%emt 0:16:02]} Rc8 {[%emt 0:10:07] [#]} 19. Rc1 {[%emt 0:25:04]} (19. c3 $1 $16 {[%cal Rc3b4]} Nd3 20. Rd2) 19... Bf6 $14 {[%emt 0:03:12]} 20. a3 {[%emt 0:01:57]} Nd5 {[%emt 0:00:09][%cal Bb4d5,Bd5c7,Bc7e6][%mdl 32]} 21. Re2 {[%emt 0:03:27]} Rg8 {[%emt 0:02:01]} 22. c4 {[%emt 0:03:18]} Nc7 {[%emt 0:02:59]} 23. Rd2 {[%emt 0:08:48]} Ne6 {[%emt 0:03:06]} 24. Kf2 {[%emt 0:02:10]} h5 {[%emt 0:08:04]} 25. c5 {[%emt 0:01:14] [#]} h4 $1 {[%emt 0:03:55]} 26. Rd5 {[%emt 0:00:21]} (26. Nxh4 Bxh4) 26... hxg3+ {[%emt 0:00:43]} 27. hxg3 {[%emt 0:00:03][%cal Ob3a5]} f4 {[%emt 0:00:41]} 28. gxf4 {[%emt 0:05:35]} exf4 {[%emt 0:00:02]} 29. Na5 {[%emt 0:01:12]} fxe3+ {[%emt 0:06:29]} (29... Bxb2 30. Rc2 Bxa3 31. Nxb7 $11) 30. Kxe3 {[%emt 0:00:05]} Bxb2 {[%emt 0:03:11]} 31. Rc2 {[%emt 0:00:54]} Bxa3 {[%emt 0:00:29]} 32. Nxb7 {[%emt 0:00:07]} Rc7 {[%emt 0:01:26]} 33. c6 {[%emt 0:01:22]} Ke7 {[%emt 0:01:00]} 34. Ra5 {[%emt 0:01:02]} Bb4 $36 {[%emt 0:00:23][%mdl 2048] Black is more active.} 35. Ra4 {[%emt 0:00:22]} (35. Rf5 $11) 35... Bd6 {[%emt 0:00:58]} (35... Rg4 $15 {feels stronger.} 36. Rxa7 Nc5 (36... Bc5+ 37. Nxc5 Rxa7 38. Nxe6 $11)) 36. Nxd6 $11 {[%emt 0:00:40]} Kxd6 {[%emt 0:00:01]} 37. Rd2+ {[%emt 0:00:30]} Kxc6 {[%emt 0:00:15]} 38. Ne5+ {[%emt 0:00:22]} Kb7 $1 {[%emt 0:00:11]} 39. Rb4+ {[%emt 0:00:19]} Ka8 {[%emt 0:00:09]} 40. Rd6 {[%emt 0:00:00][%cal Oe5f7]} Rg3+ {[%emt 0:00:00]} 41. Kd2 {[%emt 0:12:12][%cal Oe5f7]} Rg2+ {[%emt 0:02:28]} 42. Kd1 {[%emt 0:02:06][%cal Oe5f7]} Ra2 {[%emt 0:15:03]} 43. Rc6 {[%emt 0:08:29]} Ra5 {[%emt 0:02:13]} 44. Rxc7 {[%emt 0:00:27][%cal Rc7c8]} Rd5+ {[%emt 0:01:06]} (44... Nxc7 {simplifies} 45. Nxf7 Rf5 46. Nh6 Rc5) 45. Kc1 {[%emt 0:01:54]} Nxc7 {[%emt 0:00:03]} 46. Nxf7 {[%emt 0:00:08][%mdl 4096] Endgame KRN-KRN. Black is a pawn up.} a5 {[%emt 0:01:08]} 47. Rb2 {[%emt 0:02:35]} Ka7 {[%emt 0:01:16]} 48. Rd2 {[%emt 0:00:16]} Rh5 {[%emt 0:00:14]} 49. Nd6 {[%emt 0:00:42]} Nd5 {[%emt 0:01:20]} 50. Kb2 {[%emt 0:01:11]} Ka6 {[%emt 0:00:33]} 51. Ne4 {[%emt 0:00:37]} Ne3 {[%emt 0:02:18] and ...Nc4+ would now be decisive} 52. Rd3 {[%emt 0:01:08]} Nc4+ {[%emt 0:00:33]} 53. Kb3 {[%emt 0:00:41]} Nb6 {[%emt 0:00:27]} ({Much weaker is} 53... Nd2+ $6 54. Rxd2 Rb5+ 55. Ka3 $16) 54. Nc3 {[%emt 0:00:32]} Rh4 {[%emt 0:00:23]} 55. Rd6 {[%emt 0:00:14]} Kb7 {[%emt 0:00:42]} 56. Rg6 {[%emt 0:03:21]} a4+ {[%emt 0:01:57]} 57. Nxa4 {[%emt 0:00:40]} Nxa4 {[%emt 0:00:02] KRN-KR} 58. Kc2 {[%emt 0:00:29]} Nc5 {[%emt 0:00:23]} 59. Kc3 {[%emt 0:00:12]} Kc7 {[%emt 0:00:16]} 60. Kd2 {[%emt 0:00:35]} Ne4+ {[%emt 0:00:31]} 61. Ke3 {[%emt 0:00:35]} Nd6 {[%emt 0:00:05]} 62. Kf3 {[%emt 0:00:18]} Kc6 {[%emt 0:00:05]} 63. Rg8 {[%emt 0:00:27]} Kd5 {[%emt 0:00:31]} 64. Rg5+ {[%emt 0:00:14]} Ke6 $1 {[%emt 0:00:05]} 65. Ra5 {[%emt 0:00:38]} Nc4 {[%emt 0:00:19]} 66. Ra8 {[%emt 0:00:06]} Kd5 {[%emt 0:00:51]} 67. Rd8+ {[%emt 0:00:13]} Nd6 {[%emt 0:00:04]} 68. Ra8 {[%emt 0:01:07]} Rh6 {[%emt 0:01:05]} 69. Ra5+ {[%emt 0:02:01]} Kd4 {[%emt 0:00:03]} 70. Ra4+ {[%emt 0:00:10]} Nc4 {[%emt 0:00:05]} 71. Ra8 {[%emt 0:00:03]} Ne5+ {[%emt 0:00:19]} 72. Kg3 {[%emt 0:00:51]} (72. Ke2 Rh2+ 73. Kd1 Nc6 $19) 72... Rf6 {[%emt 0:01:03]} 73. Ra4+ {[%emt 0:01:18]} Nc4 {[%emt 0:00:02]} 74. Ra8 {[%emt 0:00:06]} Ne3 {[%emt 0:02:54]} 75. Rd8+ {[%emt 0:00:24]} Ke4 {[%emt 0:00:21]} 76. Re8+ {[%emt 0:00:13]} Kd3 {[%emt 0:00:04]} 77. Ra8 {[%emt 0:00:08]} Nc4 {[%emt 0:01:55]} 78. Rd8+ {[%emt 0:00:27]} Ke4 {[%emt 0:01:03]} 79. Ra8 {[%emt 0:01:04]} Rf3+ {[%emt 0:00:25]} 80. Kh2 {[%emt 0:01:14]} Ne5 {[%emt 0:02:39]} 81. Kg2 {[%emt 0:00:28]} Rf7 {[%emt 0:00:28]} 82. Re8 {[%emt 0:00:33]} Rf5 {[%emt 0:00:47]} 83. Ra8 {[%emt 0:00:50]} Ke3 {[%emt 0:00:51]} 84. Ra3+ {[%emt 0:00:24]} Nd3 {[%emt 0:00:01]} 85. Ra8 {[%emt 0:00:41]} Ne1+ {[%emt 0:01:33]} 86. Kh3 {[%emt 0:00:23]} Rg5 {[%emt 0:00:17]} 87. Ra3+ {[%emt 0:00:26]} Nd3 {[%emt 0:00:04] The position is equal.} 88. Kh4 {[%emt 0:00:33]} Rg1 {[%emt 0:00:44]} 89. Kh5 {[%emt 0:00:24]} Ke4 {[%emt 0:00:07]} 90. Kh6 {[%emt 0:00:26]} Ne5 {[%emt 0:00:20]} 91. Ra8 {[%emt 0:00:31]} Nf7+ {[%emt 0:00:43]} 92. Kh7 {[%emt 0:00:19]} Kf5 {[%emt 0:00:03]} 93. Ra2 {[%emt 0:00:50]} Ke6 {[%emt 0:01:18]} 94. Ra6+ {[%emt 0:00:43]} Nd6 {[%emt 0:00:17]} 95. Ra4 {[%emt 0:00:14] Weighted Error Value: White=0.14 (very precise) /Black=0.13 (very precise)   Mistake:       	White=5     	Black=3      Inaccurate:     	White=6     	Black=5      OK:         	White=28    	Black=33     Best:        	White=3     	Black=2      Strong:       	---       	Black=2} ({Better is} 95. Ra5 $1 $11) 1/2-1/2

[Event "European Womens-ch 2025"]
[Site "Rhodes"]
[Date "2025.04.08"]
[Round "8.5"]
[White "Narva, Mai"]
[Black "Arabidze, Meri"]
[Result "1/2-1/2"]
[Annotator "RC"]
[ECO "C45"]
[WhiteElo "2380"]
[BlackElo "2447"]
[PlyCount "80"]
[EventDate "2025.03.29"]
[EventType "swiss"]
[EventCountry "GRE"]
[SourceTitle "playchess.com"]
[Source "ChessBase"]
[SourceQuality "1"]
[TimeControl "40/5400+30:1800+30"]

1. e4 {[%emt 0:03:57]} e5 {[%emt 0:00:09]} 2. Nf3 {[%emt 0:00:14]} Nc6 {[%emt 0:00:06]} 3. d4 {[%emt 0:00:18]} exd4 {[%emt 0:00:11]} 4. Nxd4 {[%emt 0:00:09]} Qf6 {[%emt 0:00:11]} 5. Be3 {[%emt 0:00:54]} Bc5 {[%emt 0:01:44]} 6. c3 {[%emt 0:00:16]} Nge7 {[%emt 0:03:54]} 7. Bb5 {[%emt 0:00:20]} Bb6 {[%emt 0:06:30]} 8. O-O {[%emt 0:00:37]} O-O {[%emt 0:04:58]} 9. a4 {[%emt 0:00:31]} d5 {[%emt 0:08:49]} 10. Bxc6 {[%emt 0:02:33]} bxc6 {[%emt 0:03:46]} 11. a5 {[%emt 0:00:18]} Bc5 {[%emt 0:02:29]} 12. Nd2 {[%emt 0:02:55]} Ba6 {[%emt 0:13:50]} 13. Re1 {[%emt 0:03:40]} Bd6 {[%emt 0:03:49]} 14. h4 {[%emt 0:29:31]} h6 {[%emt 0:05:35]} 15. h5 {[%emt 0:11:43]} Rfd8 {[%emt 0:10:48]} 16. N4f3 {[%emt 0:07:51]} dxe4 {[%emt 0:06:58]} 17. Nxe4 {[%emt 0:00:30]} Qf5 {[%emt 0:01:13]} 18. Nxd6 {[%emt 0:00:38]} Rxd6 {[%emt 0:07:48]} 19. Nd4 {[%emt 0:02:17]} Qf6 {[%emt 0:00:50]} 20. Qg4 {[%emt 0:06:23]} Rd5 {[%emt 0:03:11]} 21. Bf4 {[%emt 0:04:18]} c5 {[%emt 0:01:37]} 22. Nf3 {[%emt 0:07:41]} Bc8 {[%emt 0:00:57]} 23. Qh4 {[%emt 0:00:44]} Qxh4 {[%emt 0:01:17]} 24. Nxh4 {[%emt 0:00:05]} Be6 {[%emt 0:00:22]} 25. Bxc7 {[%emt 0:00:22]} Rxh5 {[%emt 0:02:50]} 26. Nf3 {[%emt 0:00:05]} Rd5 {[%emt 0:01:08]} 27. a6 {[%emt 0:04:12]} Rc8 {[%emt 0:02:39]} 28. Bg3 {[%emt 0:01:09]} Nc6 {[%emt 0:02:08]} 29. Ne5 {[%emt 0:03:57]} Kh7 {[%emt 0:01:18]} 30. Re4 {[%emt 0:05:40]} Nxe5 {[%emt 0:01:04]} 31. Bxe5 {[%emt 0:00:15]} c4 {[%emt 0:02:54]} 32. Bd4 {[%emt 0:00:50]} Rd6 {[%emt 0:00:43]} 33. Re5 {[%emt 0:00:44]} Rcc6 {[%emt 0:00:13]} 34. Rea5 {[%emt 0:00:35]} Bc8 {[%emt 0:00:14]} 35. Bxa7 {[%emt 0:00:37]} Rxa6 {[%emt 0:00:27]} 36. Rxa6 {[%emt 0:00:37]} Bxa6 {[%emt 0:00:35]} 37. Ra4 {[%emt 0:00:40]} Rc6 {[%emt 0:00:14]} 38. Rb4 {[%emt 0:00:25]} Bc8 {[%emt 0:00:36]} 39. b3 {[%emt 0:00:28]} Be6 {[%emt 0:00:51]} 40. bxc4 {[%emt 0:00:00]} Rxc4 {[%emt 0:00:00]} 1/2-1/2

[Event "European Womens-ch 2025"]
[Site "Rhodes"]
[Date "2025.04.08"]
[Round "8.6"]
[White "Tsolakidou, Stavroula"]
[Black "Daulyte-Cornette, Deimante"]
[Result "1/2-1/2"]
[Annotator "RC"]
[ECO "C70"]
[WhiteElo "2445"]
[BlackElo "2389"]
[PlyCount "138"]
[EventDate "2025.03.29"]
[EventType "swiss"]
[EventCountry "GRE"]
[SourceTitle "playchess.com"]
[Source "ChessBase"]
[SourceQuality "1"]
[TimeControl "40/5400+30:1800+30"]

1. e4 {[%emt 0:03:49]} e5 {[%emt 0:00:13]} 2. Nf3 {[%emt 0:00:09]} Nc6 {[%emt 0:00:07]} 3. Bb5 {[%emt 0:00:11]} a6 {[%emt 0:00:23]} 4. Ba4 {[%emt 0:00:07]} Bc5 {[%emt 0:00:27]} 5. c3 {[%emt 0:00:37]} Nge7 {[%emt 0:00:30]} 6. d4 {[%emt 0:00:35]} exd4 {[%emt 0:00:20]} 7. cxd4 {[%emt 0:00:06]} Bb4+ {[%emt 0:00:05]} 8. Nc3 {[%emt 0:00:22]} d5 {[%emt 0:00:51]} 9. e5 {[%emt 0:00:26]} O-O {[%emt 0:05:38]} 10. h3 {[%emt 0:00:54]} Ng6 {[%emt 0:11:49]} 11. O-O {[%emt 0:06:14]} Nce7 {[%emt 0:01:03]} 12. Ne2 {[%emt 0:11:14]} f6 {[%emt 0:04:28]} 13. a3 {[%emt 0:07:28]} Ba5 {[%emt 0:00:06]} 14. Ng3 {[%emt 0:03:39]} fxe5 {[%emt 0:05:13]} 15. dxe5 {[%emt 0:00:53]} Nf4 {[%emt 0:07:29]} 16. Bxf4 {[%emt 0:21:35]} Rxf4 {[%emt 0:00:07]} 17. Bc2 {[%emt 0:00:16]} Ng6 {[%emt 0:28:44]} 18. Ng5 {[%emt 0:02:25]} Nf8 {[%emt 0:17:18]} 19. Qd3 {[%emt 0:05:16]} Bb6 {[%emt 0:01:28]} 20. Nf3 {[%emt 0:18:29]} c6 {[%emt 0:00:10]} 21. Kh2 {[%emt 0:00:41]} Ng6 {[%emt 0:04:35]} 22. Rae1 {[%emt 0:03:15]} Be6 {[%emt 0:00:29]} 23. Qe2 {[%emt 0:04:57]} Nh4 {[%emt 0:01:20]} 24. Nxh4 {[%emt 0:03:08]} Qxh4 {[%emt 0:00:11]} 25. f3 {[%emt 0:02:13]} Raf8 {[%emt 0:00:34]} 26. Qd3 {[%emt 0:00:18]} Qh6 {[%emt 0:01:24]} 27. Ne2 {[%emt 0:00:48]} Rh4 {[%emt 0:01:12]} 28. f4 {[%emt 0:00:14]} Bf5 {[%emt 0:02:27]} 29. Qxf5 {[%emt 0:01:08]} Rxf5 {[%emt 0:00:04]} 30. Bxf5 {[%emt 0:00:05]} Rh5 {[%emt 0:01:29]} 31. Bg4 {[%emt 0:01:15]} Rh4 {[%emt 0:00:09]} 32. Bf5 {[%emt 0:01:00]} Rh5 {[%emt 0:00:21]} 33. Bd7 {[%emt 0:01:48]} Be3 {[%emt 0:00:55]} 34. e6 {[%emt 0:01:06]} Kf8 {[%emt 0:02:06]} 35. Ng3 {[%emt 0:00:19]} d4 {[%emt 0:00:21]} 36. Nxh5 {[%emt 0:00:51]} Qxh5 {[%emt 0:00:05]} 37. f5 {[%emt 0:00:30]} Qg5 {[%emt 0:01:18]} 38. Rf3 {[%emt 0:00:12]} Ke7 {[%emt 0:01:44]} 39. Bc8 {[%emt 0:00:21]} b6 {[%emt 0:00:45]} 40. Bxa6 {[%emt 0:00:00]} h5 {[%emt 0:00:00]} 41. Bd3 {[%emt 0:07:07]} h4 {[%emt 0:05:45]} 42. Ref1 {[%emt 0:06:47]} Qf6 {[%emt 0:04:21]} 43. Kh1 {[%emt 0:07:50]} Qe5 {[%emt 0:03:53]} 44. a4 {[%emt 0:03:19]} Kf6 {[%emt 0:02:08]} 45. b3 {[%emt 0:00:40]} Qd5 {[%emt 0:05:12]} 46. Rb1 {[%emt 0:01:36]} Qa5 {[%emt 0:05:08]} 47. Be4 {[%emt 0:00:15]} c5 {[%emt 0:01:17]} 48. g3 {[%emt 0:01:14]} Qd2 {[%emt 0:00:40]} 49. Rbf1 {[%emt 0:01:40]} Bg5 {[%emt 0:04:57]} 50. gxh4 {[%emt 0:00:40]} Bxh4 {[%emt 0:00:05]} 51. Bd3 {[%emt 0:01:10]} Ke7 {[%emt 0:00:21]} 52. Rg1 {[%emt 0:00:59]} Bf6 {[%emt 0:00:08]} 53. Rb1 {[%emt 0:04:16]} Be5 {[%emt 0:00:26]} 54. Kg1 {[%emt 0:00:15]} Qh2+ {[%emt 0:01:34]} 55. Kf1 {[%emt 0:00:03]} Bg3 {[%emt 0:01:10]} 56. Be4 {[%emt 0:00:29]} Bf4 {[%emt 0:02:14]} 57. Rd1 {[%emt 0:00:46]} Be3 {[%emt 0:00:39]} 58. Rb1 {[%emt 0:00:50]} Kd6 {[%emt 0:00:45]} 59. Rd1 {[%emt 0:00:36]} Qg1+ {[%emt 0:00:30]} 60. Ke2 {[%emt 0:00:03]} Qg2+ {[%emt 0:00:05]} 61. Ke1 {[%emt 0:00:57]} Qg1+ {[%emt 0:00:20]} 62. Ke2 {[%emt 0:00:20]} Qh2+ {[%emt 0:00:04]} 63. Ke1 {[%emt 0:00:35]} Ke7 {[%emt 0:00:38]} 64. Rb1 {[%emt 0:00:19]} Qd2+ {[%emt 0:00:28]} 65. Kf1 {[%emt 0:00:03]} Qh2 {[%emt 0:00:52]} 66. Ke1 {[%emt 0:00:08]} Bd2+ {[%emt 0:00:17]} 67. Kf1 {[%emt 0:00:50]} Be3 {[%emt 0:00:23]} 68. Ke1 {[%emt 0:00:15]} Qh1+ {[%emt 0:01:24]} 69. Ke2 {[%emt 0:00:05]} Qh2+ {[%emt 0:00:16]} 1/2-1/2